[Event "Titled Tuesday Blitz April 18 Early 2023"]
[White "Rustemov, Alexander"]
[Black "Vlassov, Nikolai"]
[WhiteFideId "4119002"]
[BlackFideId "4103360"]
[WhiteElo "2855"]
[BlackElo "2324"]
[Result "1-0"]
[Round "04"]
[TimeControl "180+2"]
[Date "2023.04.18"]
[WhiteClock "0:00:40"]
[BlackClock "0:00:03"]

1. Nf3 {[%clk 0:02:59]}  c5 {[%clk 0:02:59]} 2. c4 {[%clk 0:02:58]}  g6 {[%clk 0:02:59]} 3. g3 {[%clk 0:02:58]}  Bg7 {[%clk 0:02:59]} 4. Bg2 {[%clk 0:02:58]}  Nc6 {[%clk 0:02:59]} 5. O-O {[%clk 0:02:57]}  d6 {[%clk 0:02:59]} 6. Nc3 {[%clk 0:02:57]}  Nh6 {[%clk 0:02:57]} 7. d4 {[%clk 0:02:56]}  cxd4 {[%clk 0:02:47]} 8. Nxd4 {[%clk 0:02:55]}  Nxd4 {[%clk 0:02:40]} 9. Bxh6 {[%clk 0:02:54]}  Bxh6 {[%clk 0:02:40]} 10. Qxd4 {[%clk 0:02:54]}  O-O {[%clk 0:02:39]} 11. Rfd1 {[%clk 0:02:47]}  Bg7 {[%clk 0:02:38]} 12. Qd2 {[%clk 0:02:43]}  Re8 {[%clk 0:02:18]} 13. Rac1 {[%clk 0:02:42]}  Qa5 {[%clk 0:02:14]} 14. Nd5 {[%clk 0:02:28]}  Qxd2 {[%clk 0:02:10]} 15. Rxd2 {[%clk 0:02:29]}  Rb8 {[%clk 0:02:08]} 16. b4 {[%clk 0:02:15]}  b6 {[%clk 0:02:06]} 17. b5 {[%clk 0:02:12]}  Bd7 {[%clk 0:01:53]} 18. Nb4 {[%clk 0:02:12]}  Rbc8 {[%clk 0:01:52]} 19. Bc6 {[%clk 0:02:11]}  Bxc6 {[%clk 0:01:46]} 20. Nxc6 {[%clk 0:02:10]}  a6 {[%clk 0:01:41]} 21. a4 {[%clk 0:02:08]}  Rc7 {[%clk 0:01:37]} 22. Nb4 {[%clk 0:01:59]}  axb5 {[%clk 0:01:35]} 23. axb5 {[%clk 0:02:00]}  Ra8 {[%clk 0:01:32]} 24. Na6 {[%clk 0:01:50]}  Rcc8 {[%clk 0:01:28]} 25. Rcc2 {[%clk 0:01:45]}  Kf8 {[%clk 0:01:28]} 26. e4 {[%clk 0:01:44]}  Ke8 {[%clk 0:01:23]} 27. Kg2 {[%clk 0:01:43]}  Ra7 {[%clk 0:01:21]} 28. f4 {[%clk 0:01:43]}  h5 {[%clk 0:01:18]} 29. Kf3 {[%clk 0:01:43]}  Raa8 {[%clk 0:01:12]} 30. Ke3 {[%clk 0:01:41]}  Ra7 {[%clk 0:01:11]} 31. Kd3 {[%clk 0:01:41]}  Raa8 {[%clk 0:01:12]} 32. Ra2 {[%clk 0:01:40]}  Ra7 {[%clk 0:01:09]} 33. Ra4 {[%clk 0:01:38]}  Kd7 {[%clk 0:01:04]} 34. Rda2 {[%clk 0:01:38]}  Rb7 {[%clk 0:00:48]} 35. Nb4 {[%clk 0:01:36]}  e6 {[%clk 0:00:41]} 36. Nc6 {[%clk 0:01:33]}  Bf8 {[%clk 0:00:38]} 37. Ra7 {[%clk 0:01:29]}  Rxa7 {[%clk 0:00:30]} 38. Rxa7+ {[%clk 0:01:29]}  Rc7 {[%clk 0:00:31]} 39. Ra6 {[%clk 0:01:27]}  Rb7 {[%clk 0:00:31]} 40. Ra8 {[%clk 0:01:27]}  Bg7 {[%clk 0:00:30]} 41. e5 {[%clk 0:01:15]}  dxe5 {[%clk 0:00:28]} 42. fxe5 {[%clk 0:01:14]}  Bh6 {[%clk 0:00:20]} 43. Kd4 {[%clk 0:01:10]}  Bg7 {[%clk 0:00:14]} 44. Rg8 {[%clk 0:01:05]}  Bh6 {[%clk 0:00:13]} 45. Rh8 {[%clk 0:01:05]}  Bc1 {[%clk 0:00:11]} 46. Rf8 {[%clk 0:01:05]}  Bb2+ {[%clk 0:00:11]} 47. Ke4 {[%clk 0:01:03]}  Rc7 {[%clk 0:00:08]} 48. Rxf7+ {[%clk 0:01:02]}  Kc8 {[%clk 0:00:08]} 49. Rf6 {[%clk 0:01:00]}  Rd7 {[%clk 0:00:05]} 50. Rxe6 {[%clk 0:00:57]}  Rd2 {[%clk 0:00:05]} 51. h4 {[%clk 0:00:54]}  g5 {[%clk 0:00:03]} 52. hxg5 {[%clk 0:00:49]}  Rc2 {[%clk 0:00:03]} 53. Nd4 {[%clk 0:00:40]} 1-0


[Site "https://www.chess.com"]

[Event "Titled Tuesday Blitz April 18 Early 2023"]
[White "Kravtsiv, Martyn"]
[Black "Ibadov, Dashgyn"]
[WhiteFideId "14113147"]
[BlackFideId "24107514"]
[WhiteElo "2695"]
[BlackElo "2208"]
[Result "1-0"]
[Round "04"]
[TimeControl "180+2"]
[Date "2023.04.18"]
[WhiteClock "0:01:02"]
[BlackClock "0:00:12"]

1. b3 {[%clk 0:03:00]}  Nf6 {[%clk 0:02:59]} 2. Bb2 {[%clk 0:03:01]}  e6 {[%clk 0:02:58]} 3. c4 {[%clk 0:02:54]}  d5 {[%clk 0:02:58]} 4. Nf3 {[%clk 0:02:51]}  Be7 {[%clk 0:02:57]} 5. g4 {[%clk 0:02:51]}  b6 {[%clk 0:02:38]} 6. g5 {[%clk 0:02:40]}  Nh5 {[%clk 0:02:38]} 7. cxd5 {[%clk 0:02:24]}  exd5 {[%clk 0:02:36]} 8. Rg1 {[%clk 0:02:24]}  Be6 {[%clk 0:02:26]} 9. e3 {[%clk 0:02:22]}  O-O {[%clk 0:01:54]} 10. Be2 {[%clk 0:02:18]}  g6 {[%clk 0:01:49]} 11. h4 {[%clk 0:02:16]}  c5 {[%clk 0:01:46]} 12. Ne5 {[%clk 0:02:11]}  d4 {[%clk 0:01:39]} 13. Bxh5 {[%clk 0:02:09]}  gxh5 {[%clk 0:01:40]} 14. Qxh5 {[%clk 0:02:07]}  Qd5 {[%clk 0:01:37]} 15. Ng4 {[%clk 0:01:09]}  Kh8 {[%clk 0:01:12]} 16. Nc3 {[%clk 0:01:04]}  dxc3 {[%clk 0:00:55]} 17. Bxc3+ {[%clk 0:01:05]}  f6 {[%clk 0:00:55]} 18. gxf6 {[%clk 0:01:02]}  Qxh5 {[%clk 0:00:12]} 19. fxe7+ {[%clk 0:01:02]}  Kg8 {[%clk 0:00:12]} 20. Nh6# {[%clk 0:01:02]} 1-0


[Site "https://www.chess.com"]

[Event "Titled Tuesday Blitz April 18 Early 2023"]
[White "Mammadov, Zaur"]
[Black "Han, Yichen"]
[WhiteFideId "13401033"]
[BlackFideId "1054430"]
[WhiteElo "2441"]
[BlackElo "2342"]
[Result "1-0"]
[Round "04"]
[TimeControl "180+2"]
[Date "2023.04.18"]
[WhiteClock "0:01:28"]
[BlackClock "0:00:31"]

1. e4 {[%clk 0:03:00]}  c5 {[%clk 0:02:56]} 2. c3 {[%clk 0:02:59]}  Nf6 {[%clk 0:02:55]} 3. e5 {[%clk 0:02:57]}  Nd5 {[%clk 0:02:52]} 4. Nf3 {[%clk 0:02:58]}  e6 {[%clk 0:02:49]} 5. d4 {[%clk 0:02:59]}  cxd4 {[%clk 0:02:48]} 6. cxd4 {[%clk 0:02:57]}  b6 {[%clk 0:02:49]} 7. Bd3 {[%clk 0:02:56]}  Bb7 {[%clk 0:02:48]} 8. O-O {[%clk 0:02:54]}  d6 {[%clk 0:02:47]} 9. Nc3 {[%clk 0:02:54]}  Nxc3 {[%clk 0:02:46]} 10. bxc3 {[%clk 0:02:55]}  Nd7 {[%clk 0:02:42]} 11. Bf4 {[%clk 0:02:53]}  dxe5 {[%clk 0:02:33]} 12. Nxe5 {[%clk 0:02:47]}  Nxe5 {[%clk 0:02:29]} 13. Bxe5 {[%clk 0:02:44]}  Qd5 {[%clk 0:02:27]} 14. f3 {[%clk 0:02:38]}  f6 {[%clk 0:02:24]} 15. Bg3 {[%clk 0:02:31]}  Qd7 {[%clk 0:02:09]} 16. Re1 {[%clk 0:02:27]}  e5 {[%clk 0:01:51]} 17. Qc2 {[%clk 0:02:05]}  g6 {[%clk 0:01:31]} 18. dxe5 {[%clk 0:01:57]}  Bc5+ {[%clk 0:01:30]} 19. Kh1 {[%clk 0:01:55]}  O-O-O {[%clk 0:01:28]} 20. Rad1 {[%clk 0:01:55]}  fxe5 {[%clk 0:01:06]} 21. Be4 {[%clk 0:01:46]}  Bxe4 {[%clk 0:00:55]} 22. Qxe4 {[%clk 0:01:39]}  Qb7 {[%clk 0:00:56]} 23. Qxe5 {[%clk 0:01:32]}  Rxd1 {[%clk 0:00:35]} 24. Rxd1 {[%clk 0:01:31]}  Rd8 {[%clk 0:00:31]} 25. Qe6+ {[%clk 0:01:28]} 1-0


[Site "https://www.chess.com"]

[Event "Titled Tuesday Blitz April 18 Early 2023"]
[White "Skatchkov, Valery"]
[Black "Ashraf, Artin"]
[WhiteFideId "24195812"]
[BlackFideId "22514805"]
[WhiteElo "2262"]
[BlackElo "2188"]
[Result "1-0"]
[Round "04"]
[TimeControl "180+2"]
[Date "2023.04.18"]
[WhiteClock "0:01:40"]
[BlackClock "0:00:01"]

1. d4 {[%clk 0:03:00]}  Nf6 {[%clk 0:02:57]} 2. c4 {[%clk 0:03:00]}  g6 {[%clk 0:02:55]} 3. Nc3 {[%clk 0:02:59]}  Bg7 {[%clk 0:02:55]} 4. e4 {[%clk 0:02:59]}  d6 {[%clk 0:02:55]} 5. h3 {[%clk 0:02:58]}  O-O {[%clk 0:02:54]} 6. Bg5 {[%clk 0:02:58]}  e5 {[%clk 0:02:51]} 7. dxe5 {[%clk 0:02:58]}  dxe5 {[%clk 0:02:39]} 8. Qxd8 {[%clk 0:02:57]}  Rxd8 {[%clk 0:02:40]} 9. Nd5 {[%clk 0:02:57]}  Rxd5 {[%clk 0:02:04]} 10. exd5 {[%clk 0:02:54]}  c6 {[%clk 0:02:04]} 11. O-O-O {[%clk 0:02:51]}  cxd5 {[%clk 0:01:53]} 12. cxd5 {[%clk 0:02:51]}  Bf5 {[%clk 0:01:50]} 13. Bd3 {[%clk 0:02:46]}  Nbd7 {[%clk 0:01:42]} 14. Ne2 {[%clk 0:02:40]}  Rc8+ {[%clk 0:01:27]} 15. Kb1 {[%clk 0:02:38]}  e4 {[%clk 0:01:02]} 16. Bc2 {[%clk 0:02:38]}  Nb6 {[%clk 0:00:59]} 17. Nc3 {[%clk 0:02:36]}  Rxc3 {[%clk 0:00:46]} 18. bxc3 {[%clk 0:02:33]}  Nfxd5 {[%clk 0:00:46]} 19. Kc1 {[%clk 0:02:28]}  h6 {[%clk 0:00:38]} 20. c4 {[%clk 0:02:12]}  Nc3 {[%clk 0:00:29]} 21. Rd8+ {[%clk 0:02:11]}  Kh7 {[%clk 0:00:29]} 22. Bd2 {[%clk 0:02:08]}  Nxc4 {[%clk 0:00:17]} 23. Bxc3 {[%clk 0:02:07]}  Bxc3 {[%clk 0:00:18]} 24. g4 {[%clk 0:02:07]}  Bf6 {[%clk 0:00:09]} 25. gxf5 {[%clk 0:01:49]}  Bxd8 {[%clk 0:00:08]} 26. fxg6+ {[%clk 0:01:47]}  fxg6 {[%clk 0:00:08]} 27. Bxe4 {[%clk 0:01:48]}  b6 {[%clk 0:00:05]} 28. Rd1 {[%clk 0:01:47]}  Bg5+ {[%clk 0:00:05]} 29. Kc2 {[%clk 0:01:48]}  Ne5 {[%clk 0:00:05]} 30. Rd6 {[%clk 0:01:45]}  Kg7 {[%clk 0:00:03]} 31. h4 {[%clk 0:01:43]}  Bxh4 {[%clk 0:00:02]} 32. f4 {[%clk 0:01:43]}  Nf7 {[%clk 0:00:02]} 33. Rxg6+ {[%clk 0:01:41]}  Kf8 {[%clk 0:00:02]} 34. Bd5 {[%clk 0:01:41]}  h5 {[%clk 0:00:01]} 35. Kd3 {[%clk 0:01:40]} 1-0


[Site "https://www.chess.com"]

[Event "Titled Tuesday Blitz April 18 Early 2023"]
[White "Pajeken, Jakob Leon"]
[Black "Beerdsen, Thomas"]
[WhiteFideId "12942839"]
[BlackFideId "1030108"]
[WhiteElo "2414"]
[BlackElo "2547"]
[Result "1/2-1/2"]
[Round "04"]
[TimeControl "180+2"]
[Date "2023.04.18"]
[WhiteClock "0:00:03"]
[BlackClock "0:00:22"]

1. e4 {[%clk 0:03:00]}  c5 {[%clk 0:02:59]} 2. Nf3 {[%clk 0:03:01]}  Nc6 {[%clk 0:02:59]} 3. Bb5 {[%clk 0:02:58]}  Na5 {[%clk 0:02:59]} 4. Be2 {[%clk 0:02:53]}  e6 {[%clk 0:02:59]} 5. O-O {[%clk 0:02:50]}  Nc6 {[%clk 0:02:58]} 6. d4 {[%clk 0:02:47]}  cxd4 {[%clk 0:02:58]} 7. Nxd4 {[%clk 0:02:47]}  Qc7 {[%clk 0:02:56]} 8. Nb5 {[%clk 0:02:41]}  Qb8 {[%clk 0:02:56]} 9. c4 {[%clk 0:02:34]}  Nf6 {[%clk 0:02:52]} 10. N1c3 {[%clk 0:02:19]}  a6 {[%clk 0:02:51]} 11. Na3 {[%clk 0:02:08]}  h5 {[%clk 0:02:44]} 12. h3 {[%clk 0:01:49]}  Bc5 {[%clk 0:02:14]} 13. Nc2 {[%clk 0:01:38]}  Qe5 {[%clk 0:02:05]} 14. Be3 {[%clk 0:01:22]}  Bxe3 {[%clk 0:02:02]} 15. Nxe3 {[%clk 0:01:23]}  Nxe4 {[%clk 0:02:02]} 16. Nxe4 {[%clk 0:01:23]}  Qxe4 {[%clk 0:02:03]} 17. c5 {[%clk 0:01:20]}  Qd4 {[%clk 0:01:58]} 18. Qc1 {[%clk 0:01:12]}  b6 {[%clk 0:01:53]} 19. cxb6 {[%clk 0:01:10]}  Qxb6 {[%clk 0:01:53]} 20. Nc4 {[%clk 0:01:03]}  Qc5 {[%clk 0:01:45]} 21. Rd1 {[%clk 0:00:58]}  d5 {[%clk 0:01:44]} 22. Qg5 {[%clk 0:00:45]}  O-O {[%clk 0:01:40]} 23. Rac1 {[%clk 0:00:42]}  Qe7 {[%clk 0:01:34]} 24. Qxh5 {[%clk 0:00:29]}  dxc4 {[%clk 0:01:33]} 25. Rxc4 {[%clk 0:00:28]}  g6 {[%clk 0:01:08]} 26. Qh6 {[%clk 0:00:27]}  Rd8 {[%clk 0:01:01]} 27. Rxc6 {[%clk 0:00:14]}  Rxd1+ {[%clk 0:01:01]} 28. Bxd1 {[%clk 0:00:15]}  Bb7 {[%clk 0:01:02]} 29. Rc1 {[%clk 0:00:14]}  Rd8 {[%clk 0:01:00]} 30. Qe3 {[%clk 0:00:13]}  Bd5 {[%clk 0:00:58]} 31. Bb3 {[%clk 0:00:12]}  Ba8 {[%clk 0:00:54]} 32. f3 {[%clk 0:00:04]}  Qf6 {[%clk 0:00:50]} 33. Rc2 {[%clk 0:00:03]}  Rd1+ {[%clk 0:00:49]} 34. Kh2 {[%clk 0:00:03]}  Kg7 {[%clk 0:00:37]} 35. Rc8 {[%clk 0:00:03]}  Rd8 {[%clk 0:00:32]} 36. Rxd8 {[%clk 0:00:03]}  Qxd8 {[%clk 0:00:33]} 37. Qc3+ {[%clk 0:00:03]}  Kg8 {[%clk 0:00:33]} 38. Qe5 {[%clk 0:00:02]}  a5 {[%clk 0:00:33]} 39. Ba4 {[%clk 0:00:01]}  Bd5 {[%clk 0:00:34]} 40. Bb3 {[%clk 0:00:02]}  Bc6 {[%clk 0:00:33]} 41. Bc2 {[%clk 0:00:02]}  Be8 {[%clk 0:00:31]} 42. Be4 {[%clk 0:00:02]}  a4 {[%clk 0:00:31]} 43. a3 {[%clk 0:00:02]}  Qh4 {[%clk 0:00:29]} 44. Qg3 {[%clk 0:00:02]}  Qf6 {[%clk 0:00:29]} 45. Qf2 {[%clk 0:00:02]}  Kg7 {[%clk 0:00:29]} 46. g3 {[%clk 0:00:03]}  g5 {[%clk 0:00:27]} 47. f4 {[%clk 0:00:03]}  gxf4 {[%clk 0:00:28]} 48. gxf4 {[%clk 0:00:04]}  Kf8 {[%clk 0:00:26]} 49. Qd2 {[%clk 0:00:03]}  Qh4 {[%clk 0:00:23]} 50. Bg2 {[%clk 0:00:03]}  Bb5 {[%clk 0:00:21]} 51. Qb4+ {[%clk 0:00:03]}  Kg8 {[%clk 0:00:20]} 52. Qxb5 {[%clk 0:00:04]}  Qxf4+ {[%clk 0:00:21]} 53. Kg1 {[%clk 0:00:04]}  Qe3+ {[%clk 0:00:21]} 54. Kh1 {[%clk 0:00:04]}  Qc1+ {[%clk 0:00:21]} 55. Bf1 {[%clk 0:00:04]}  e5 {[%clk 0:00:19]} 56. Qe2 {[%clk 0:00:04]}  e4 {[%clk 0:00:19]} 57. Qg2+ {[%clk 0:00:04]}  Kf8 {[%clk 0:00:19]} 58. Kh2 {[%clk 0:00:04]}  Qf4+ {[%clk 0:00:19]} 59. Kh1 {[%clk 0:00:05]}  e3 {[%clk 0:00:19]} 60. Be2 {[%clk 0:00:03]}  Qe5 {[%clk 0:00:20]} 61. Qa8+ {[%clk 0:00:02]}  Kg7 {[%clk 0:00:20]} 62. Qg2+ {[%clk 0:00:03]}  Kf8 {[%clk 0:00:21]} 63. Bf3 {[%clk 0:00:03]}  Qd4 {[%clk 0:00:20]} 64. Qe2 {[%clk 0:00:03]}  f5 {[%clk 0:00:20]} 65. Kg2 {[%clk 0:00:03]}  f4 {[%clk 0:00:21]} 66. Bg4 {[%clk 0:00:03]}  Qe4+ {[%clk 0:00:21]} 67. Bf3 {[%clk 0:00:04]}  Qg6+ {[%clk 0:00:22]} 68. Kh1 {[%clk 0:00:03]}  Qg3 {[%clk 0:00:22]} 69. Bg2 {[%clk 0:00:02]}  Qh4 {[%clk 0:00:21]} 70. Qf3 {[%clk 0:00:01]}  Qe1+ {[%clk 0:00:22]} 71. Qf1 {[%clk 0:00:02]}  Qg3 {[%clk 0:00:21]} 72. Qf3 {[%clk 0:00:02]}  Qh4 {[%clk 0:00:20]} 73. Qe2 {[%clk 0:00:01]}  Ke7 {[%clk 0:00:20]} 74. Qf3 {[%clk 0:00:02]}  Kf6 {[%clk 0:00:20]} 75. Qc6+ {[%clk 0:00:02]}  Kg7 {[%clk 0:00:20]} 76. Qd7+ {[%clk 0:00:02]}  Kh6 {[%clk 0:00:21]} 77. Qe6+ {[%clk 0:00:02]}  Kg7 {[%clk 0:00:20]} 78. Qd7+ {[%clk 0:00:02]}  Kf8 {[%clk 0:00:21]} 79. Qd6+ {[%clk 0:00:02]}  Kg7 {[%clk 0:00:20]} 80. Qe5+ {[%clk 0:00:02]}  Kf8 {[%clk 0:00:21]} 81. Qf5+ {[%clk 0:00:02]}  Ke7 {[%clk 0:00:21]} 82. Qe4+ {[%clk 0:00:02]}  Kd8 {[%clk 0:00:21]} 83. Qd4+ {[%clk 0:00:03]}  Kc7 {[%clk 0:00:21]} 84. Qc5+ {[%clk 0:00:03]}  Kd8 {[%clk 0:00:22]} 85. Qd6+ {[%clk 0:00:03]}  Ke8 {[%clk 0:00:22]} 86. Bc6+ {[%clk 0:00:03]}  Kf7 {[%clk 0:00:23]} 87. Bd5+ {[%clk 0:00:03]}  Kg7 {[%clk 0:00:24]} 88. Qe5+ {[%clk 0:00:03]}  Kf8 {[%clk 0:00:22]} 89. Qd6+ {[%clk 0:00:03]}  Kg7 {[%clk 0:00:23]} 90. Qd7+ {[%clk 0:00:03]}  Kh6 {[%clk 0:00:22]} 91. Qe6+ {[%clk 0:00:03]}  Kg7 {[%clk 0:00:21]} 92. Qd7+ {[%clk 0:00:03]}  Kh6 {[%clk 0:00:22]} 93. Qd6+ {[%clk 0:00:03]}  Kg7 {[%clk 0:00:22]} 1/2-1/2


[Site "https://www.chess.com"]

[Event "Titled Tuesday Blitz April 18 Early 2023"]
[White "Richter, Paul"]
[Black "Galchenko, Matvey"]
[WhiteFideId "2046350"]
[BlackFideId "24175480"]
[WhiteElo "2533"]
[BlackElo "2423"]
[Result "0-1"]
[Round "04"]
[TimeControl "180+2"]
[Date "2023.04.18"]
[WhiteClock "0:00:04"]
[BlackClock "0:00:15"]

1. e4 {[%clk 0:03:00]}  e6 {[%clk 0:02:57]} 2. d4 {[%clk 0:03:00]}  d5 {[%clk 0:02:57]} 3. Nc3 {[%clk 0:03:01]}  Bb4 {[%clk 0:02:57]} 4. e5 {[%clk 0:03:00]}  Ne7 {[%clk 0:02:57]} 5. a3 {[%clk 0:02:56]}  Bxc3+ {[%clk 0:02:58]} 6. bxc3 {[%clk 0:02:57]}  c5 {[%clk 0:02:58]} 7. h4 {[%clk 0:02:58]}  cxd4 {[%clk 0:02:59]} 8. cxd4 {[%clk 0:02:57]}  Qc7 {[%clk 0:02:58]} 9. Nf3 {[%clk 0:02:55]}  b6 {[%clk 0:02:48]} 10. h5 {[%clk 0:02:54]}  h6 {[%clk 0:02:47]} 11. Bb5+ {[%clk 0:02:40]}  Bd7 {[%clk 0:02:47]} 12. Bd3 {[%clk 0:02:40]}  Ba4 {[%clk 0:02:38]} 13. Bd2 {[%clk 0:02:32]}  Nbc6 {[%clk 0:02:36]} 14. Rh4 {[%clk 0:02:28]}  Rc8 {[%clk 0:02:31]} 15. Rg4 {[%clk 0:02:24]}  Kf8 {[%clk 0:02:27]} 16. Rc1 {[%clk 0:02:17]}  Na5 {[%clk 0:02:25]} 17. Bb4 {[%clk 0:02:06]}  Nc4 {[%clk 0:02:22]} 18. Nd2 {[%clk 0:01:42]}  Nb2 {[%clk 0:02:07]} 19. Qf3 {[%clk 0:01:42]}  Nxd3+ {[%clk 0:02:05]} 20. Qxd3 {[%clk 0:01:43]}  Kg8 {[%clk 0:02:00]} 21. Bxe7 {[%clk 0:01:19]}  Qxe7 {[%clk 0:02:01]} 22. c4 {[%clk 0:01:11]}  f5 {[%clk 0:01:52]} 23. exf6 {[%clk 0:01:07]}  Qxf6 {[%clk 0:01:53]} 24. Rg6 {[%clk 0:00:53]}  Qh4 {[%clk 0:01:40]} 25. Rxe6 {[%clk 0:00:38]}  Qxh5 {[%clk 0:01:08]} 26. c5 {[%clk 0:00:20]}  Qg4 {[%clk 0:00:36]} 27. Re5 {[%clk 0:00:18]}  Qxg2 {[%clk 0:00:35]} 28. Nf3 {[%clk 0:00:10]}  Rf8 {[%clk 0:00:33]} 29. Ke2 {[%clk 0:00:08]}  Bb5 {[%clk 0:00:29]} 30. Qxb5 {[%clk 0:00:08]}  Qxf3+ {[%clk 0:00:29]} 31. Kd2 {[%clk 0:00:09]}  Qxf2+ {[%clk 0:00:29]} 32. Re2 {[%clk 0:00:07]}  Qxd4+ {[%clk 0:00:27]} 33. Ke1 {[%clk 0:00:07]}  Qg1+ {[%clk 0:00:19]} 34. Kd2 {[%clk 0:00:07]}  Qg5+ {[%clk 0:00:18]} 35. Kc2 {[%clk 0:00:07]}  bxc5 {[%clk 0:00:14]} 36. Qxc5 {[%clk 0:00:07]}  Kh7 {[%clk 0:00:15]} 37. Rce1 {[%clk 0:00:04]}  Rc8 {[%clk 0:00:15]} 0-1


[Site "https://www.chess.com"]

[Event "Titled Tuesday Blitz April 18 Early 2023"]
[White "Csonka, Balazs"]
[Black "Aggelis, Nikolaos"]
[WhiteFideId "742910"]
[BlackFideId "4213220"]
[WhiteElo "2404"]
[BlackElo "2189"]
[Result "1-0"]
[Round "04"]
[TimeControl "180+2"]
[Date "2023.04.18"]
[WhiteClock "0:00:06"]
[BlackClock "0:00:26"]

1. e4 {[%clk 0:02:59]}  c6 {[%clk 0:02:59]} 2. d4 {[%clk 0:02:58]}  d5 {[%clk 0:02:59]} 3. Nc3 {[%clk 0:02:59]}  dxe4 {[%clk 0:02:59]} 4. Nxe4 {[%clk 0:03:00]}  Nf6 {[%clk 0:02:59]} 5. Bd3 {[%clk 0:02:30]}  Nxe4 {[%clk 0:02:55]} 6. Bxe4 {[%clk 0:02:31]}  Nd7 {[%clk 0:02:55]} 7. c3 {[%clk 0:02:25]}  Nf6 {[%clk 0:02:51]} 8. Bc2 {[%clk 0:02:26]}  Bg4 {[%clk 0:02:50]} 9. f3 {[%clk 0:02:22]}  Bh5 {[%clk 0:02:50]} 10. Bg5 {[%clk 0:02:04]}  Bg6 {[%clk 0:02:49]} 11. Ne2 {[%clk 0:01:41]}  Bxc2 {[%clk 0:02:42]} 12. Qxc2 {[%clk 0:01:42]}  e6 {[%clk 0:02:40]} 13. O-O-O {[%clk 0:01:43]}  h6 {[%clk 0:02:36]} 14. Bd2 {[%clk 0:01:32]}  Bd6 {[%clk 0:02:31]} 15. Kb1 {[%clk 0:01:31]}  Qc7 {[%clk 0:02:30]} 16. g4 {[%clk 0:01:15]}  O-O-O {[%clk 0:02:23]} 17. h4 {[%clk 0:01:12]}  Nd5 {[%clk 0:01:37]} 18. c4 {[%clk 0:01:06]}  Nf4 {[%clk 0:01:37]} 19. Nxf4 {[%clk 0:01:06]}  Bxf4 {[%clk 0:01:37]} 20. Bc3 {[%clk 0:01:01]}  Rhe8 {[%clk 0:01:19]} 21. h5 {[%clk 0:00:47]}  Rd7 {[%clk 0:01:18]} 22. Qh7 {[%clk 0:00:42]}  f6 {[%clk 0:01:12]} 23. Rhe1 {[%clk 0:00:34]}  Rde7 {[%clk 0:01:00]} 24. Qg6 {[%clk 0:00:26]}  b6 {[%clk 0:00:53]} 25. Re4 {[%clk 0:00:20]}  Kb7 {[%clk 0:00:50]} 26. Rde1 {[%clk 0:00:20]}  Bd6 {[%clk 0:00:47]} 27. Kc2 {[%clk 0:00:20]}  c5 {[%clk 0:00:41]} 28. d5 {[%clk 0:00:12]}  exd5 {[%clk 0:00:34]} 29. cxd5 {[%clk 0:00:13]}  Rxe4 {[%clk 0:00:33]} 30. Rxe4 {[%clk 0:00:14]}  Rxe4 {[%clk 0:00:33]} 31. Qxe4 {[%clk 0:00:10]}  Qe7 {[%clk 0:00:30]} 32. Qxe7+ {[%clk 0:00:10]}  Bxe7 {[%clk 0:00:31]} 33. Kd3 {[%clk 0:00:10]}  Kc7 {[%clk 0:00:31]} 34. Ke4 {[%clk 0:00:11]}  Kd6 {[%clk 0:00:28]} 35. Be1 {[%clk 0:00:08]}  c4 {[%clk 0:00:24]} 36. Bb4+ {[%clk 0:00:03]}  Kd7 {[%clk 0:00:25]} 37. Bxe7 {[%clk 0:00:04]}  Kxe7 {[%clk 0:00:26]} 38. Kd4 {[%clk 0:00:04]}  b5 {[%clk 0:00:25]} 39. Kc5 {[%clk 0:00:04]}  a6 {[%clk 0:00:23]} 40. a4 {[%clk 0:00:02]}  bxa4 {[%clk 0:00:20]} 41. Kxc4 {[%clk 0:00:02]}  Kd6 {[%clk 0:00:21]} 42. Kd4 {[%clk 0:00:02]}  a5 {[%clk 0:00:19]} 43. Kc4 {[%clk 0:00:02]}  Kd7 {[%clk 0:00:18]} 44. Kc5 {[%clk 0:00:03]}  Kc7 {[%clk 0:00:19]} 45. d6+ {[%clk 0:00:03]}  Kd7 {[%clk 0:00:19]} 46. Kd5 {[%clk 0:00:04]}  Kd8 {[%clk 0:00:19]} 47. Ke6 {[%clk 0:00:03]}  Ke8 {[%clk 0:00:19]} 48. d7+ {[%clk 0:00:02]}  Kd8 {[%clk 0:00:19]} 49. Kf7 {[%clk 0:00:02]}  Kxd7 {[%clk 0:00:19]} 50. Kxg7 {[%clk 0:00:03]}  Kd6 {[%clk 0:00:19]} 51. Kxf6 {[%clk 0:00:03]}  Kc5 {[%clk 0:00:20]} 52. g5 {[%clk 0:00:03]}  Kb4 {[%clk 0:00:21]} 53. gxh6 {[%clk 0:00:03]}  Kb3 {[%clk 0:00:21]} 54. h7 {[%clk 0:00:04]}  Kxb2 {[%clk 0:00:22]} 55. h8=Q {[%clk 0:00:04]}  a3 {[%clk 0:00:23]} 56. Kf7+ {[%clk 0:00:05]}  Kb1 {[%clk 0:00:23]} 57. h6 {[%clk 0:00:05]}  a2 {[%clk 0:00:24]} 58. Qb8+ {[%clk 0:00:05]}  Kc1 {[%clk 0:00:24]} 59. Qc7+ {[%clk 0:00:05]}  Kb1 {[%clk 0:00:25]} 60. Qxa5 {[%clk 0:00:05]}  a1=Q {[%clk 0:00:25]} 61. Qxa1+ {[%clk 0:00:05]}  Kxa1 {[%clk 0:00:26]} 62. f4 {[%clk 0:00:06]} 1-0


[Site "https://www.chess.com"]